lending/lending_fUSD_20251125
["ID","MTS","AMOUNT","RATE_DAILY","PERIOD"]
[394879267,1764053441579,-255.10985574,0.00039726,8]
[394879268,1764053441588,-150.7876338,0.00039726,8]
[394879269,1764053441597,-500.0,0.00039726,8]
[394879270,1764053441607,-350.47488874,0.00039726,8]
[394879271,1764053441616,-500.0,0.00039726,8]
[394879272,1764053441626,-500.0,0.00039726,8]
[394879273,1764053441636,-500.0,0.00039726,8]
[394879274,1764053441646,-1028.33972478,0.00039726,5]
[394879275,1764053441655,-1002.37218048,0.0003973,2]
[394879276,1764053441664,-154.81537229,0.00039748,5]
[394879277,1764053441673,-151.0,0.00039775,14]
[394879278,1764053441682,-1963.3,0.00039778,2]
[394879279,1764053441691,-1000.0,0.00039959,7]
[394879280,1764053441701,-1000.0,0.00039998,7]
[394879281,1764053441710,-1000.0,0.00039999,7]
[394879282,1764053441719,-500.0,0.0004,8]
[394879283,1764053441729,-500.0,0.0004,8]
[394879284,1764053441738,-500.0,0.0004,8]
[394879285,1764053441747,-479.24,0.00040055,2]
[394879286,1764053441756,-701.83,0.00040055,2]
[394879287,1764053441765,-701.83,0.00040055,2]
[394879288,1764053441775,-479.24,0.00040055,2]
[394879289,1764053441784,-701.83,0.00040055,2]
[394879290,1764053441793,-701.83,0.00040055,2]
[394879291,1764053441803,-701.83,0.00040055,2]
[394879292,1764053441812,-1387.12,0.00040055,2]
[394879293,1764053441821,-1000.0,0.00040178,5]
[394879294,1764053441831,-1000.0,0.00040179,7]
[394879295,1764053441840,-500.0,0.0004018,7]
[394879296,1764053441849,-500.0,0.0004018,7]
[394879297,1764053441858,-1200.0,0.0004018,7]
[394879298,1764053441867,-1000.0,0.00040228,7]
[394879299,1764053441877,-500.0,0.00040273,8]
[394879300,1764053441887,-500.0,0.00040273,8]
[394879301,1764053441897,-500.0,0.00040273,8]
[394879302,1764053441906,-1212.01,0.00040329,2]
[394879303,1764053441915,-1212.01,0.00040329,2]
[394879304,1764053441924,-1212.01,0.00040329,2]
[394879305,1764053441933,-1212.01,0.00040329,2]
[394879306,1764053441943,-232.54,0.00040329,2]
[394879307,1764053441952,-1000.0,0.00040338,7]
[394879308,1764053441962,-500.0,0.00040547,8]
[394879309,1764053441971,-500.0,0.00040547,8]
[394879311,1764053441980,-500.0,0.00040547,8]
[394879313,1764053441989,-568.0,0.00040717,30]
[394879315,1764053441997,-1901.97,0.00040736,30]
[394879317,1764053442007,-1901.97,0.00040736,30]
[394879319,1764053442015,-1901.97,0.00040736,30]
[394879321,1764053442024,-1901.97,0.00040736,30]
[394879323,1764053442033,-1000.0,0.00040738,7]
[394879325,1764053442042,-2000.0,0.00040795,3]
[394879327,1764053442051,-956.38,0.000408,2]
[394879329,1764053442060,-479.24,0.000408,2]
[394879331,1764053442069,-479.24,0.000408,2]
[394879333,1764053442078,-479.24,0.000408,2]
[394879334,1764053442087,-479.24,0.000408,2]
[394879337,1764053442097,-484.01,0.000408,2]
[394879339,1764053442107,-300.251433,0.00040802,102]
[394879341,1764053442116,-1000.0,0.0004082,7]
[394879343,1764053442125,-500.0,0.00040821,8]
[394879344,1764053442135,-501.4935,0.00040821,8]
[394879346,1764053442144,-266.10991493,0.00040821,8]
[394879366,1764053442324,-1000.0,0.00040874,7]
[394879368,1764053442333,-4999.93499052,0.000409,15]
[394879370,1764053442342,-1000.0,0.00040958,2]
[394879372,1764053442352,-495.73725734,0.00040969,13]
[394879374,1764053442361,-495.73725725,0.00040969,13]
[394879376,1764053442370,-495.73725725,0.00040969,13]
[394879378,1764053442381,-495.73725725,0.00040969,13]
[394879380,1764053442391,-495.73725725,0.00040969,13]
[394879382,1764053442401,-495.73725725,0.00040969,13]
[394879384,1764053442411,-495.73725725,0.00040969,13]
[394879386,1764053442421,-495.73725725,0.00040969,13]
[394879388,1764053442430,-495.73725725,0.00040969,13]
[394879390,1764053442440,-495.73725725,0.00040969,13]
[394879392,1764053442451,-495.73725725,0.00040969,13]
[394879394,1764053442461,-495.73725725,0.00040969,13]
[394879396,1764053442470,-495.73725725,0.00040969,13]
[394879398,1764053442479,-495.73725725,0.00040969,13]
[394879400,1764053442488,-1000.0,0.00040971,7]
[394879402,1764053442497,-500.0,0.00040973,5]
[394879404,1764053442507,-166.66,0.00040991,2]
[394879406,1764053442516,-1000.0,0.00040998,7]
[394879408,1764053442526,-216.68239479,0.00040999,30]
[394879410,1764053442535,-1000.0,0.00040999,3]
[394879412,1764053442544,-22607.77569337,0.00041,3]
[394879414,1764053442553,-1000.0,0.00041,2]
[394879416,1764053442563,-1000.0,0.00041,2]
[394879418,1764053442572,-1000.0,0.00041,2]
[394879420,1764053442581,-1000.0,0.00041,2]
[394879422,1764053442590,-1000.0,0.00041,2]
[394879424,1764053442599,-1000.0,0.00041,2]
[394879426,1764053442609,-1050.70274692,0.00041,2]
[394879428,1764053442618,-64552.34945901,0.00041,2]
[394879430,1764053442627,-573.9454702,0.00041,30]
[394879432,1764053442636,-286.25,0.00041,120]
[394879434,1764053442645,-150.0,0.00041,3]
[394879436,1764053442654,-204.0971819,0.00041,3]
[394879438,1764053442663,-18185.0,0.00041,5]
[394879440,1764053442673,-196.55,0.00041,30]
[394879442,1764053442683,-979.87860752,0.00041,2]
[394879444,1764053442691,-166.0,0.00041,90]
[394879446,1764053442701,-500.0,0.00041002,7]
[394879448,1764053442711,-1200.0,0.00041002,7]
[394879450,1764053442720,-4999.9349905,0.00041008,15]
[394879452,1764053442730,-1901.97,0.0004101,30]
[394879454,1764053442739,-1901.97,0.0004101,30]
[394879456,1764053442749,-479.24,0.00041014,2]
[394879458,1764053442760,-1402.1,0.00041014,2]
[394879460,1764053442769,-479.24,0.00041014,2]
[394879462,1764053442778,-479.24,0.00041014,2]
[394879464,1764053442787,-479.24,0.00041014,2]
[394879466,1764053442796,-479.24,0.00041014,2]
[394879468,1764053442806,-477.86,0.00041014,2]
[394879470,1764053442815,-500.0,0.00041095,8]
[394879472,1764053442825,-727.17,0.00041096,120]
[394879474,1764053442834,-248.33,0.00041096,120]
[394879476,1764053442843,-158.95,0.00041096,2]
[394879478,1764053442852,-1000.0,0.00041096,120]
[394879480,1764053442861,-1000.0,0.00041096,8]
[394879482,1764053442870,-500.0,0.00041096,120]
[394879484,1764053442879,-840.0,0.000411,2]
[394879487,1764053442888,-594.21828961,0.000411,2]
[394879488,1764053442897,-396.0,0.000411,2]
[394879491,1764053442907,-4999.9349905,0.00041115,15]
[394879492,1764053442916,-568.0,0.00041137,30]
[394879494,1764053442925,-4501.26973553,0.00041163,120]
[394879496,1764053442934,-1000.0,0.00041233,8]
[394879499,1764053442944,-500.0,0.00041233,120]
[394879500,1764053442953,-1901.97,0.00041284,30]
[394879502,1764053442962,-1901.97,0.00041284,30]
[394879504,1764053442971,-1933.42,0.000413,120]
[394879506,1764053442980,-210.0,0.00041333,2]
[394879508,1764053442990,-334.71941998,0.00041369,8]
[394879510,1764053442999,-600.0,0.0004137,120]
[394879512,1764053443008,-1000.0,0.0004137,8]
[394879514,1764053443017,-500.0,0.0004137,120]
[394879517,1764053443026,-289.66659279,0.0004142,120]
[394879519,1764053443035,-1000.0,0.00041507,8]
[394879521,1764053443044,-500.0,0.00041507,120]
[394879523,1764053443053,-1000.0,0.00041521,10]
[394879525,1764053443063,-603.2435,0.00041543,2]
[394879527,1764053443072,-568.0,0.00041557,30]
[394879529,1764053443082,-1901.97,0.00041558,30]
[394879531,1764053443092,-1901.97,0.00041558,30]
[394879533,1764053443101,-2000.0,0.00041589,3]
[394879535,1764053443111,-2000.0,0.00041615,3]
[394879537,1764053443120,-2989.0,0.00041644,7]
[394879539,1764053443130,-600.0,0.00041644,120]
[394879541,1764053443140,-1000.0,0.00041644,8]
[394879543,1764053443150,-500.0,0.00041644,120]
[394879545,1764053443160,-5000.0,0.00041652,120]
[394879547,1764053443170,-173.12899083,0.00041659,4]
[394879549,1764053443179,-512.65,0.000417,2]
[394879551,1764053443189,-500.0,0.000417,3]
[394879553,1764053443198,-500.0,0.000417,3]
[394879555,1764053443207,-500.0,0.000417,5]
[394879557,1764053443216,-500.0,0.000417,3]
[394879559,1764053443224,-500.0,0.000417,3]
[394879561,1764053443233,-500.0,0.000417,4]
[394879563,1764053443242,-161.95838319,0.00041749,7]
[394879565,1764053443251,-150.77,0.00041749,2]
[394879567,1764053443260,-151.48477468,0.00041758,20]
[394879569,1764053443270,-500.0,0.00041758,120]
[394879571,1764053443279,-779018.3155,0.00041759,30]
[394879573,1764053443289,-700.0,0.0004177,3]
[394879575,1764053443298,-401.31959871,0.0004177,3]
[394879577,1764053443307,-700.0,0.0004177,3]
[394879579,1764053443317,-400.0,0.0004177,3]
[394879581,1764053443327,-1000.0,0.00041781,8]
[394879583,1764053443336,-500.0,0.00041781,120]
[394879585,1764053443347,-750.17326706,0.000418,39]
[394879587,1764053443357,-154.94,0.000418,14]
[394879589,1764053443366,-500.0,0.00041824,60]
[394879591,1764053443377,-1200.0,0.00041824,60]
[394879593,1764053443391,-500.0,0.00041824,60]
[394879595,1764053443401,-1901.97,0.00041832,30]
[394879598,1764053443410,-1901.97,0.00041832,30]
[394879599,1764053443421,-223.41765531,0.00041838,120]
[394879602,1764053443431,-760.97901858,0.00041869,15]
[394879604,1764053443440,-471.44778762,0.00041869,2]
[394879606,1764053443450,-495.73725725,0.00041869,14]
[394879608,1764053443460,-173.12899083,0.00041869,5]
[394879609,1764053443469,-4844.42175407,0.00041869,2]
[394879611,1764053443478,-237.93791969,0.00041869,2]
[394879613,1764053443487,-312.30793328,0.00041869,120]
[394879615,1764053443496,-389.21206478,0.00041869,2]
[394879617,1764053443505,-98928.23022327,0.00041872,21]
[394879619,1764053443514,-24765.6161096,0.00041872,120]
[394879631,1764053443613,-3416.96187452,0.00041872,120]
[394879667,1764053443936,-3042.25526663,0.00041223,15]
[394879675,1764053444004,-1243.86456691,0.00041223,15]
[394879677,1764053444016,-713.81515696,0.00041223,15]
[394879679,1764053444025,-127372.42201588,0.00041872,120]
[394879681,1764053444035,-191.42061423,0.000419,120]
[394879683,1764053444045,-185.7367286,0.000419,120]
[394879685,1764053444054,-176.09584438,0.000419,120]
[394879687,1764053444063,-189.15865493,0.000419,120]
[394879689,1764053444072,-7908.01075908,0.00041903,2]
[394879691,1764053444081,-474.21,0.00041918,120]
[394879693,1764053444090,-1000.0,0.00041918,8]
[394879695,1764053444100,-500.0,0.00041918,120]
[394879697,1764053444109,-150.77,0.00041959,2]
[394879699,1764053444118,-150.77,0.00041959,2]
[394879701,1764053444130,-150.77,0.00041959,2]
[394879704,1764053444141,-150.77,0.00041959,2]
[394879706,1764053444151,-150.77,0.00041959,2]
[394879708,1764053444160,-150.77,0.00041959,2]
[394879710,1764053444169,-150.77,0.00041959,2]
[394879712,1764053444179,-150.77,0.00041959,2]
[394879713,1764053444189,-150.77,0.00041959,2]
[394879716,1764053444198,-4364.24958228,0.00041968,30]
[394879718,1764053444214,-158.95,0.00041096,2]
[394879720,1764053444223,-40691.06302794,0.00041968,30]
[394879775,1764053444892,-782.6182949,0.00041968,30]
[394879917,1764053446251,-4999.9349905,0.00041331,15]
[394879919,1764053446261,-880.74974731,0.00041968,30]
[394879921,1764053446272,-314.68864544,0.00041968,30]
[394879923,1764053446282,-473.66992269,0.00041968,30]
[394879925,1764053446294,-2492.96077944,0.00041968,30]
[394879927,1764053446303,-375.4477767,0.00041969,30]
[394879930,1764053446320,-725.36577032,0.00041969,30]
[394879932,1764053446329,-1100.81354702,0.00041969,30]
[394879934,1764053446339,-1500.04204315,0.00041969,30]
[394879940,1764053446390,-500.0,0.00041969,30]
[394880219,1764053449105,-15062.88669538,0.00041969,30]
[394880221,1764053449115,-8300.40798605,0.00041969,30]
[394880303,1764053545609,10000.01,0.00014517,2]
[394880304,1764053545635,10000.01,0.00014517,2]
[394880305,1764053545661,10000.01,0.00014517,2]
[394880306,1764053545687,10000.01,0.00014517,2]
[394880307,1764053545713,10000.01,0.00014517,2]
[394880308,1764053545738,10000.01,0.00014517,2]
[394880309,1764053545941,10000.01,0.00014517,2]
[394880310,1764053545970,10000.01,0.00014517,2]
[394880311,1764053545997,10000.01,0.00014517,2]
[394880312,1764053546024,10000.01,0.00014517,2]
[394880314,1764053672553,500.0,0.00014516,2]
[394880315,1764053672589,150.2098809,0.00014516,2]
[394880316,1764053672627,207.42264205,0.00014516,2]
[394880317,1764053682364,500.0,0.00014516,2]
[394880318,1764053682421,500.0,0.00014516,2]
[394880319,1764053700178,500.0,0.00014516,2]
[394880320,1764053700449,265.93503822,0.00014516,2]
[394880322,1764053757833,500.0,0.00014516,2]
[394880323,1764053757881,500.0,0.00014516,2]
[394880324,1764053763596,169.62009663,0.00014516,2]
[394880325,1764053767735,265.93503822,0.00014516,2]
[394880326,1764053767999,500.0,0.00014516,2]
[394880327,1764053778408,277.62717844,0.00014516,2]
[394880328,1764053782105,500.0,0.00014516,2]
[394880329,1764053782160,259.78833126,0.00014516,2]
[394880331,1764053849756,500.0,0.00014516,2]
[394880332,1764053849812,276.50278841,0.00014516,2]
[394880334,1764053865630,500.0,0.00014516,2]
[394880335,1764053865672,276.50278841,0.00014516,2]
[394880336,1764053875521,500.0,0.00014516,2]
[394880337,1764053878029,-1000.0,0.00014517,2]
[394880339,1764053893339,276.50278841,0.00014516,2]
[394880341,1764053911157,597.52652188,0.00014516,2]
[394880342,1764053929031,500.0,0.00014516,2]
[394880343,1764053929078,178.97626653,0.00014516,2]
[394880345,1764053946760,276.50278841,0.00014516,2]
[394880346,1764053952768,-500.0,0.00014517,2]
[394880348,1764053954346,-500.0,0.00014517,2]
[394880349,1764053955726,-500.0,0.00014517,2]
[394880350,1764053957106,-500.0,0.00014517,2]
[394880351,1764053958443,-500.0,0.00014517,2]
[394880352,1764053959826,-500.0,0.00014517,2]
[394880353,1764053961265,-500.0,0.00014517,2]
[394880354,1764053962556,-500.0,0.00014517,2]
[394880355,1764053963833,-500.0,0.00014517,2]
[394880356,1764053965233,-500.0,0.00014517,2]
[394880357,1764053966533,-500.0,0.00014517,2]
[394880358,1764053967856,-500.0,0.00014517,2]
[394880359,1764053969001,-500.0,0.00014517,2]
[394880360,1764053970317,-500.0,0.00014517,2]
[394880361,1764053971642,-500.0,0.00014517,2]
[394880362,1764053973039,-500.0,0.00014517,2]
[394880363,1764053974340,-500.0,0.00014517,2]
[394880364,1764053975606,-500.0,0.00014517,2]
[394880366,1764053976799,-500.0,0.00014517,2]
[394880367,1764053978230,-500.0,0.00014517,2]
[394880368,1764053979513,-500.0,0.00014517,2]
[394880369,1764053980803,-500.0,0.00014517,2]
[394880370,1764053982080,-500.0,0.00014517,2]
[394880371,1764053983315,-500.0,0.00014517,2]
[394880372,1764053984600,-500.0,0.00014517,2]
[394880373,1764053985908,-500.0,0.00014517,2]
[394880374,1764053987167,-500.0,0.00014517,2]
[394880375,1764053988642,-500.0,0.00014517,2]
[394880376,1764053989895,-500.0,0.00014517,2]
[394880377,1764053991146,-500.0,0.00014517,2]
[394880378,1764053992482,-500.0,0.00014517,2]
[394880379,1764053993718,-500.0,0.00014517,2]
[394880380,1764053994967,-500.0,0.00014517,2]
[394880381,1764053996146,-500.0,0.00014517,2]
[394880382,1764053997419,-500.0,0.00014517,2]
[394880383,1764053998695,-500.0,0.00014517,2]
[394880385,1764054000024,-500.0,0.00014517,2]
[394880386,1764054001290,-500.0,0.00014517,2]
[394880387,1764054002507,-500.0,0.00014517,2]
[394880388,1764054003758,-500.0,0.00014517,2]
[394880389,1764054004951,-500.0,0.00014517,2]
[394880390,1764054006271,-500.0,0.00014517,2]
[394880391,1764054007520,-500.0,0.00014517,2]
[394880392,1764054008686,-500.0,0.00014517,2]
[394880393,1764054009789,-500.0,0.00014517,2]
[394880394,1764054011010,-500.0,0.00014517,2]
[394880395,1764054012338,-500.0,0.00014517,2]
[394880396,1764054013482,-500.0,0.00014517,2]
[394880397,1764054014594,-500.0,0.00014517,2]
[394880398,1764054015909,-500.0,0.00014517,2]
[394880399,1764054017146,-500.0,0.00014517,2]
[394880400,1764054018475,-500.0,0.00014517,2]
[394880401,1764054019594,-500.0,0.00014517,2]
[394880402,1764054020811,-500.0,0.00014517,2]
[394880403,1764054022113,-500.0,0.00014517,2]
[394880404,1764054023475,-500.0,0.00014517,2]
[394880405,1764054024825,-500.0,0.00014517,2]
[394880406,1764054026072,-500.0,0.00014517,2]
[394880407,1764054027368,-500.0,0.00014517,2]
[394880408,1764054028543,-500.0,0.00014517,2]
[394880409,1764054029715,-500.0,0.00014517,2]
[394880410,1764054030858,-500.0,0.00014517,2]
[394880411,1764054032169,-500.0,0.00014517,2]
[394880412,1764054033379,-500.0,0.00014517,2]
[394880413,1764054034520,-500.0,0.00014517,2]
[394880414,1764054035712,-500.0,0.00014517,2]
[394880416,1764054036918,-500.0,0.00014517,2]
[394880417,1764054038074,-500.0,0.00014517,2]
[394880418,1764054039193,-500.0,0.00014517,2]
[394880419,1764054040393,-500.0,0.00014517,2]
[394880420,1764054041616,-500.0,0.00014517,2]
[394880421,1764054042829,-500.0,0.00014517,2]
[394880422,1764054044013,-500.0,0.00014517,2]
[394880423,1764054045067,-500.0,0.00014517,2]
[394880424,1764054046271,-500.0,0.00014517,2]
[394880425,1764054047438,-500.0,0.00014517,2]
[394880426,1764054048619,-500.0,0.00014517,2]
[394880427,1764054049899,-500.0,0.00014517,2]
[394880428,1764054050929,-500.0,0.00014517,2]
[394880429,1764054052093,-500.0,0.00014517,2]
[394880430,1764054053220,-500.0,0.00014517,2]
[394880431,1764054054398,-500.0,0.00014517,2]
[394880432,1764054055426,-500.0,0.00014517,2]
[394880433,1764054056603,-500.0,0.00014517,2]
[394880434,1764054057759,-500.0,0.00014517,2]
[394880435,1764054058935,-500.0,0.00014517,2]
[394880436,1764054060080,-500.0,0.00014517,2]
[394880437,1764054061157,-500.0,0.00014517,2]
[394880438,1764054062246,-500.0,0.00014517,2]
[394880439,1764054063436,-500.0,0.00014517,2]
[394880440,1764054064588,-500.0,0.00014517,2]
[394880441,1764054065695,-500.0,0.00014517,2]
[394880442,1764054066837,-500.0,0.00014517,2]
[394880443,1764054068032,-500.0,0.00014517,2]
[394880444,1764054069145,-500.0,0.00014517,2]
[394880445,1764054070245,-500.0,0.00014517,2]
[394880446,1764054071387,-500.0,0.00014517,2]
[394880447,1764054072467,-500.0,0.00014517,2]
[394880448,1764054073517,-500.0,0.00014517,2]
[394880449,1764054074920,-500.0,0.00014517,2]
[394880450,1764054075999,-500.0,0.00014517,2]
[394880451,1764054077302,-500.0,0.00014517,2]
[394880452,1764054078412,-500.0,0.00014517,2]
[394880453,1764054079592,-500.0,0.00014517,2]
[394880454,1764054080718,-500.0,0.00014517,2]
[394880455,1764054081951,-500.0,0.00014517,2]
[394880456,1764054083100,-500.0,0.00014517,2]
[394880457,1764054084215,-500.0,0.00014517,2]
[394880458,1764054085397,-500.0,0.00014517,2]
[394880459,1764054086585,-500.0,0.00014517,2]
[394880460,1764054087612,-500.0,0.00014517,2]
[394880461,1764054088548,-500.0,0.00014517,2]
[394880462,1764054089792,-500.0,0.00014517,2]
[394880463,1764054090922,-500.0,0.00014517,2]
[394880464,1764054092182,-500.0,0.00014517,2]
[394880465,1764054093292,-500.0,0.00014517,2]
[394880466,1764054094425,-500.0,0.00014517,2]
[394880467,1764054095421,-500.0,0.00014517,2]
[394880468,1764054096248,-500.0,0.00014517,2]
[394880469,1764054097107,-500.0,0.00014517,2]
[394880470,1764054097987,-500.0,0.00014517,2]
[394880471,1764054098894,-500.0,0.00014517,2]
[394880472,1764054099804,-500.0,0.00014517,2]
[394880473,1764054101542,-500.0,0.00014517,2]
[394880474,1764054102443,-500.0,0.00014517,2]
[394880475,1764054103303,-500.0,0.00014517,2]
[394880476,1764054104168,-500.0,0.00014517,2]
[394880477,1764054105140,-500.0,0.00014517,2]
[394880478,1764054106195,-500.0,0.00014517,2]
[394880479,1764054106949,-500.0,0.00014517,2]
[394880480,1764054107814,-500.0,0.00014517,2]
[394880481,1764054109080,-500.0,0.00014517,2]
[394880482,1764054109584,-500.0,0.00014517,2]
[394880483,1764054110526,-500.0,0.00014517,2]
[394880484,1764054111414,-500.0,0.00014517,2]
[394880485,1764054112481,-500.0,0.00014517,2]
[394880486,1764054113396,-500.0,0.00014517,2]
[394880487,1764054114336,-500.0,0.00014517,2]
[394880488,1764054115256,-500.0,0.00014517,2]
[394880489,1764054116504,-500.0,0.00014517,2]
[394880490,1764054117110,-500.0,0.00014517,2]
[394880491,1764054117762,-500.0,0.00014517,2]
[394880492,1764054118495,-500.0,0.00014517,2]
[394880493,1764054119063,-500.0,0.00014517,2]
[394880494,1764054119783,-500.0,0.00014517,2]
[394880495,1764054120429,-500.0,0.00014517,2]
[394880496,1764054121125,-500.0,0.00014517,2]
[394880497,1764054121568,-500.0,0.00014517,2]
[394880498,1764054122263,-500.0,0.00014517,2]
[394880499,1764054123082,-500.0,0.00014517,2]
[394880500,1764054123454,-500.0,0.00014517,2]
[394880501,1764054124127,-500.0,0.00014517,2]
[394880502,1764054124762,-4830.01018238,0.00014517,2]
[394880503,1764054124795,-10000.01,0.00014517,2]
[394880504,1764054124873,-500.0,0.00014517,2]
[394880505,1764054124955,-10000.01,0.00014517,2]
[394880506,1764054125085,-10000.01,0.00014517,2]
[394880507,1764054125186,-500.0,0.00014517,2]
[394880508,1764054125652,-500.0,0.00014517,2]
[394880509,1764054126360,-500.0,0.00014517,2]
[394880510,1764054128869,-10000.01,0.00014517,2]
[394880511,1764054129007,-10000.01,0.00014517,2]
[394880512,1764054129148,-10000.01,0.00014517,2]
[394880513,1764054129266,-10000.01,0.00014517,2]
[394880514,1764054129398,-10000.01,0.00014517,2]
[394880515,1764054129531,-10000.01,0.00014517,2]
[394880516,1764054129811,-10000.01,0.00014517,2]
[394880517,1764054129950,-10000.01,0.00014517,2]
[394880518,1764054130085,-10000.01,0.00014517,2]
[394880519,1764054130206,-10000.01,0.00014517,2]
[394880520,1764054130329,-10000.01,0.00014517,2]
[394880521,1764054130610,-10000.01,0.00014517,2]
[394880522,1764054130723,-10000.01,0.00014517,2]
[394880523,1764054130835,-10000.01,0.00014517,2]
[394880524,1764054130940,-10000.01,0.00014517,2]
[394880525,1764054134988,-10000.01,0.00014517,2]
[394880526,1764054135106,-10000.01,0.00014517,2]
[394880527,1764054135243,-10000.01,0.00014517,2]
[394880528,1764054135383,-10000.01,0.00014517,2]
[394880529,1764054135499,-10000.01,0.00014517,2]
[394880530,1764054135607,-10000.01,0.00014517,2]
[394880531,1764054135725,-10000.01,0.00014517,2]
[394880532,1764054135892,-10000.01,0.00014517,2]
[394880533,1764054136066,-10000.01,0.00014517,2]
[394880534,1764054136183,-10000.01,0.00014517,2]
[394880535,1764054136313,-10000.01,0.00014517,2]
[394880536,1764054136434,-10000.01,0.00014517,2]
[394880537,1764054136540,-10000.01,0.00014517,2]
[394880538,1764054136735,-10000.01,0.00014517,2]
[394880539,1764054136775,-10000.01,0.00014517,2]
[394880541,1764054169607,500.0,0.00014516,2]
[394880542,1764054169905,500.0,0.00014516,2]
[394880543,1764054170214,500.0,0.00014516,2]
[394880544,1764054170516,500.0,0.00014516,2]
[394880545,1764054170844,500.0,0.00014516,2]
[394880546,1764054171647,295.41003827,0.00014516,2]
[394880547,1764054181311,300.0,0.00014516,2]
[394880548,1764054362800,151.0,0.00014517,2]
[394880549,1764054426153,151.0,0.00014517,2]
[394880550,1764054426768,151.0,0.00014517,2]
[394880551,1764054427376,151.0,0.00014517,2]
[394880552,1764054428005,151.0,0.00014517,2]
[394880553,1764054428657,151.0,0.00014517,2]
[394880554,1764054429304,151.0,0.00014517,2]
[394880555,1764054430398,151.0,0.00014517,2]
[394880556,1764054431017,151.0,0.00014517,2]
[394880557,1764054431619,151.0,0.00014517,2]
[394880558,1764054432333,151.0,0.00014517,2]
[394880559,1764054432900,151.0,0.00014517,2]
[394880560,1764054433487,151.0,0.00014517,2]
[394880561,1764054434160,151.0,0.00014517,2]
[394880562,1764054440355,-4790.59996173,0.00014517,2]
[394880563,1764054440423,-10000.01,0.00014517,2]
[394880564,1764054440563,-10000.01,0.00014517,2]
[394880565,1764054440692,-10000.01,0.00014517,2]
[394880566,1764054440818,-10000.01,0.00014517,2]
[394880567,1764054440951,-10000.01,0.00014517,2]
[394880568,1764054441098,-10000.01,0.00014517,2]
[394880569,1764054441254,-10000.01,0.00014517,2]
[394880570,1764054441362,-10000.01,0.00014517,2]
[394880571,1764054441484,-10000.01,0.00014517,2]
[394880572,1764054443126,-892.31565589,0.00014517,2]
[394880588,1764054631516,-195.04354709,0.000161,2]
[394880589,1764054631526,-224.0,0.000161,2]
[394880590,1764054631535,-300.0,0.00016663,2]
[394880591,1764054631544,-300.0,0.00016663,2]
[394880592,1764054631554,-300.0,0.00016663,2]
[394880593,1764054631563,-300.0,0.00016663,2]
[394880594,1764054631572,-300.0,0.00016663,2]
[394880595,1764054631582,-500.0,0.000167,2]
[394880596,1764054631592,-500.0,0.000167,2]
[394880597,1764054631601,-500.0,0.000167,2]
[394880598,1764054631610,-500.55073687,0.000167,2]
[394880599,1764054631620,-500.76126021,0.000167,2]
[394880600,1764054631630,-250.0,0.00017,2]
[394880601,1764054631639,-151.446941,0.00017248,2]
[394880602,1764054631650,-848.553059,0.00017248,2]